fUSD/lending_fUSD_20251122
["ID","MTS","AMOUNT","RATE_DAILY","PERIOD"]
[394633251,1763796666495,-500.0,0.00016986,2]
[394633252,1763796666504,-560.13397955,0.00016986,2]
[394633253,1763796666515,-500.0,0.00016986,2]
[394633254,1763796666525,-500.0,0.00016986,2]
[394633255,1763796666534,-534.9,0.00016986,2]
[394633256,1763796666544,-500.0,0.00016986,2]
[394633257,1763796666556,-500.0,0.00016986,2]
[394633258,1763796666566,-500.0,0.00016986,2]
[394633259,1763796666576,-500.0,0.00016986,2]
[394633260,1763796666585,-500.0,0.00016986,2]
[394633261,1763796666595,-543.03,0.00016986,2]
[394633262,1763796666604,-500.0,0.00016986,2]
[394633263,1763796666613,-573.04796567,0.00016986,2]
[394633264,1763796666623,-500.0,0.00016986,2]
[394633265,1763796666632,-500.0,0.00016986,2]
[394633266,1763796666642,-500.0,0.00016986,2]
[394633267,1763796666651,-500.0,0.00016986,2]
[394633268,1763796666662,-500.0,0.00016986,2]
[394633269,1763796666674,-975.62,0.00016986,2]
[394633270,1763796666684,-500.0,0.00016986,2]
[394633271,1763796666693,-821.6,0.00016986,2]
[394633272,1763796666702,-500.0,0.00016986,2]
[394633273,1763796666712,-500.0,0.00016986,2]
[394633274,1763796666721,-500.0,0.00016986,2]
[394633275,1763796666731,-500.0,0.00016986,2]
[394633276,1763796666742,-500.0,0.00016986,2]
[394633277,1763796666751,-924.1,0.00016986,2]
[394633278,1763796666760,-4436.35,0.00016986,2]
[394633279,1763796666769,-539.85,0.00016986,2]
[394633280,1763796666779,-422.59635967,0.00016986,2]
[394633281,1763796666789,-500.0,0.00016986,2]
[394633282,1763796666798,-500.0,0.00016986,2]
[394633283,1763796666807,-500.0,0.00016986,2]
[394633284,1763796666816,-704.13,0.00016986,2]
[394633285,1763796666825,-824.64,0.00016986,2]
[394633286,1763796666834,-500.0,0.00016986,2]
[394633287,1763796666843,-1129.04,0.00016986,2]
[394633288,1763796666852,-1267.25,0.00016986,2]
[394633289,1763796666868,-500.0,0.00016986,2]
[394633290,1763796666878,-500.0,0.00016986,2]
[394633291,1763796666887,-975.13,0.00016986,2]
[394633292,1763796666896,-717.26,0.00016986,2]
[394633293,1763796666905,-802.39,0.00016986,2]
[394633294,1763796666914,-500.0,0.00016986,2]
[394633295,1763796666924,-500.0,0.00016986,2]
[394633296,1763796666933,-500.0,0.00016986,2]
[394633297,1763796666943,-300.0,0.00016986,2]
[394633298,1763796666953,-994.37,0.00016986,2]
[394633299,1763796666962,-448.58647924,0.00016986,2]
[394633300,1763796666972,-1013.71,0.00016986,2]
[394633301,1763796666982,-283.44086295,0.00016986,2]
[394633302,1763796666991,-285.81674519,0.00016986,2]
[394633303,1763796667001,-500.0,0.00016986,2]
[394633304,1763796667010,-500.0,0.00016986,2]
[394633305,1763796667020,-1689.91,0.00016986,2]
[394633306,1763796667029,-683.4,0.00016986,2]
[394633307,1763796667038,-500.0,0.00016986,2]
[394633308,1763796667048,-500.0,0.00016986,2]
[394633309,1763796667058,-514.06,0.00016986,2]
[394633310,1763796667067,-1212.98,0.00016986,2]
[394633311,1763796667077,-500.0,0.00016986,2]
[394633312,1763796667086,-500.0,0.00016986,2]
[394633313,1763796667096,-500.0,0.00016986,2]
[394633314,1763796667105,-500.0,0.00016986,2]
[394633315,1763796667114,-500.0,0.00016986,2]
[394633316,1763796667123,-1078.8,0.00016986,2]
[394633317,1763796667133,-500.0,0.00016986,2]
[394633318,1763796667142,-500.0,0.00016986,2]
[394633319,1763796667152,-592.4,0.00016986,2]
[394633320,1763796667161,-1165.88,0.00016986,2]
[394633321,1763796667171,-500.0,0.00016986,2]
[394633322,1763796667181,-1873.13,0.00016986,2]
[394633323,1763796667192,-500.0,0.00016986,2]
[394633324,1763796667203,-500.0,0.00016986,2]
[394633325,1763796667214,-581.76,0.00016986,2]
[394633326,1763796667223,-500.0,0.00016986,2]
[394633327,1763796667232,-228.83090744,0.00016986,2]
[394633328,1763796667243,-500.0,0.00016986,2]
[394633329,1763796667253,-500.0,0.00016986,2]
[394633330,1763796667263,-1223.28,0.00016986,2]
[394633331,1763796667273,-717.29,0.00016986,2]
[394633332,1763796667282,-500.0,0.00016986,2]
[394633333,1763796667292,-1170.79,0.00016986,2]
[394633334,1763796667301,-421.70859727,0.00016986,2]
[394633335,1763796667311,-501.91935123,0.00016986,2]
[394633336,1763796667321,-500.0,0.00016986,2]
[394633337,1763796667330,-721.84,0.00016986,2]
[394633338,1763796667340,-426.68059923,0.00016986,2]
[394633339,1763796667350,-500.0,0.00016986,2]
[394633340,1763796667359,-500.0,0.00016986,2]
[394633341,1763796667369,-500.0,0.00016986,2]
[394633342,1763796667379,-500.0,0.00016986,2]
[394633343,1763796667388,-500.0,0.00016986,2]
[394633344,1763796667397,-666.24,0.00016986,2]
[394633345,1763796667407,-957.18,0.00016986,2]
[394633346,1763796667417,-500.0,0.00016986,2]
[394633347,1763796667427,-500.0,0.00016986,2]
[394633348,1763796667436,-640.94,0.00016986,2]
[394633349,1763796667446,-500.0,0.00016986,2]
[394633350,1763796667456,-633.94,0.00016986,2]
[394633351,1763796667467,-500.0,0.00016986,2]
[394633352,1763796667481,-500.0,0.00016986,2]
[394633353,1763796667491,-978.78,0.00016986,2]
[394633354,1763796667501,-613.02,0.00016986,2]
[394633355,1763796667510,-500.0,0.00016986,2]
[394633356,1763796667522,-500.0,0.00016986,2]
[394633357,1763796667532,-500.0,0.00016986,2]
[394633358,1763796667541,-517.93748169,0.00016986,2]
[394633359,1763796667551,-500.0,0.00016986,2]
[394633360,1763796667562,-500.0,0.00016986,2]
[394633361,1763796667573,-500.0,0.00016986,2]
[394633362,1763796667583,-572.00845635,0.00016986,2]
[394633363,1763796667592,-533.25681634,0.00016986,2]
[394633364,1763796667602,-500.0,0.00016986,2]
[394633365,1763796667612,-500.0,0.00016986,2]
[394633366,1763796667621,-597.25,0.00016986,2]
[394633367,1763796667631,-500.0,0.00016986,2]
[394633368,1763796667640,-517.59,0.00016986,2]
[394633369,1763796667649,-500.0,0.00016986,2]
[394633370,1763796667659,-890.46,0.00016986,2]
[394633371,1763796667669,-620.53,0.00016986,2]
[394633372,1763796667678,-500.0,0.00016986,2]
[394633373,1763796667687,-500.0,0.00016986,2]
[394633374,1763796667697,-679.21,0.00016986,2]
[394633375,1763796667707,-500.0,0.00016986,2]
[394633376,1763796667717,-1192.21,0.00016986,2]
[394633377,1763796667726,-500.0,0.00016986,2]
[394633378,1763796667736,-500.0,0.00016986,2]
[394633379,1763796667746,-500.0,0.00016986,2]
[394633380,1763796667756,-500.0,0.00016986,2]
[394633381,1763796667766,-619.23,0.00016986,2]
[394633382,1763796667775,-1487.39,0.00016986,2]
[394633383,1763796667786,-500.0,0.00016986,2]
[394633384,1763796667796,-547.62,0.00016986,2]
[394633385,1763796667805,-948.04,0.00016986,2]
[394633386,1763796667814,-165.59237141,0.00016986,2]
[394633387,1763796667823,-500.0,0.00016986,2]
[394633388,1763796667832,-672.02,0.00016986,2]
[394633389,1763796667842,-500.0,0.00016986,2]
[394633390,1763796667857,-500.0,0.00016986,2]
[394633391,1763796667871,-977.44,0.00016986,2]
[394633392,1763796667881,-500.0,0.00016986,2]
[394633393,1763796667891,-500.0,0.00016986,2]
[394633394,1763796667900,-1247.98,0.00016986,2]
[394633395,1763796667909,-500.0,0.00016986,2]
[394633396,1763796667918,-500.0,0.00016986,2]
[394633397,1763796667928,-1251.92,0.00016986,2]
[394633398,1763796667937,-500.0,0.00016986,2]
[394633399,1763796667947,-500.0,0.00016986,2]
[394633400,1763796667956,-500.0,0.00016986,2]
[394633401,1763796667965,-828.92,0.00016986,2]
[394633402,1763796667975,-500.0,0.00016986,2]
[394633403,1763796667984,-622.78,0.00016986,2]
[394633404,1763796667995,-1071.5,0.00016986,2]
[394633405,1763796668004,-500.0,0.00016986,2]
[394633406,1763796668014,-640.58,0.00016986,2]
[394633407,1763796668023,-1558.87,0.00016986,2]
[394633408,1763796668034,-500.0,0.00016986,2]
[394633409,1763796668043,-500.0,0.00016986,2]
[394633410,1763796668052,-500.0,0.00016986,2]
[394633411,1763796668061,-605.18065981,0.00016986,2]
[394633412,1763796668071,-500.0,0.00016986,2]
[394633413,1763796668080,-500.0,0.00016986,2]
[394633414,1763796668089,-1277.46,0.00016986,2]
[394633415,1763796668099,-500.0,0.00016986,2]
[394633416,1763796668108,-2118.65,0.00016986,2]
[394633417,1763796668117,-500.0,0.00016986,2]
[394633418,1763796668127,-1995.8,0.00016986,2]
[394633419,1763796668137,-351.25604479,0.00016986,2]
[394633420,1763796668147,-500.0,0.00016986,2]
[394633421,1763796668156,-547.28,0.00016986,2]
[394633422,1763796668165,-500.0,0.00016986,2]
[394633423,1763796668175,-500.0,0.00016986,2]
[394633424,1763796668184,-500.0,0.00016986,2]
[394633425,1763796668194,-173.00531251,0.00016986,2]
[394633426,1763796668204,-500.0,0.00016986,2]
[394633427,1763796668214,-799.88,0.00016986,2]
[394633428,1763796668223,-500.0,0.00016986,2]
[394633429,1763796668233,-1431.54,0.00016986,2]
[394633430,1763796668244,-500.0,0.00016986,2]
[394633431,1763796668254,-199.71588878,0.00016986,2]
[394633432,1763796668263,-2600.51,0.00016986,2]
[394633433,1763796668273,-500.0,0.00016986,2]
[394633434,1763796668282,-500.0,0.00016986,2]
[394633435,1763796668292,-1283.11,0.00016986,2]
[394633436,1763796668302,-500.0,0.00016986,2]
[394633437,1763796668312,-1222.43,0.00016986,2]
[394633438,1763796668321,-696.03,0.00016986,2]
[394633439,1763796668331,-500.0,0.00016986,2]
[394633440,1763796668341,-935.44,0.00016986,2]
[394633441,1763796668351,-500.0,0.00016986,2]
[394633442,1763796668360,-500.0,0.00016986,2]
[394633443,1763796668370,-500.0,0.00016986,2]
[394633444,1763796668380,-500.0,0.00016986,2]
[394633445,1763796668390,-844.71,0.00016986,2]
[394633446,1763796668400,-500.0,0.00016986,2]
[394633447,1763796668411,-827.22,0.00016986,2]
[394633448,1763796668420,-508.26,0.00016986,2]
[394633449,1763796668430,-500.0,0.00016986,2]
[394633450,1763796668440,-500.0,0.00016986,2]
[394633451,1763796668451,-1112.72,0.00016986,2]
[394633452,1763796668461,-827.37,0.00016986,2]
[394633453,1763796668471,-500.0,0.00016986,2]
[394633454,1763796668485,-500.0,0.00016986,2]
[394633455,1763796668496,-574.63,0.00016986,2]
[394633456,1763796668506,-500.0,0.00016986,2]
[394633457,1763796668516,-500.0,0.00016986,2]
[394633458,1763796668526,-8191.29,0.00016986,2]
[394633459,1763796668535,-1003.53,0.00016986,2]
[394633460,1763796668545,-606.158314,0.00016986,2]
[394633461,1763796668556,-500.0,0.00016986,2]
[394633462,1763796668565,-500.0,0.00016986,2]
[394633463,1763796668576,-500.0,0.00016986,2]
[394633464,1763796668586,-500.0,0.00016986,2]
[394633465,1763796668595,-500.0,0.00016986,2]
[394633466,1763796668605,-452.18967628,0.00016986,2]
[394633467,1763796668615,-500.0,0.00016986,2]
[394633468,1763796668624,-500.0,0.00016986,2]
[394633469,1763796668634,-500.0,0.00016986,2]
[394633470,1763796668644,-500.0,0.00016986,2]
[394633471,1763796668654,-500.0,0.00016986,2]
[394633472,1763796668663,-627.76,0.00016986,2]
[394633473,1763796668673,-500.0,0.00016986,2]
[394633474,1763796668683,-918.21,0.00016986,2]
[394633475,1763796668693,-1032.77,0.00016986,2]
[394633476,1763796668702,-745.43,0.00016986,2]
[394633477,1763796668712,-500.0,0.00016986,2]
[394633478,1763796668722,-804.17,0.00016986,2]
[394633479,1763796668732,-858.65,0.00016986,2]
[394633480,1763796668743,-709.19,0.00016986,2]
[394633481,1763796668836,-500.0,0.00016986,2]
[394633482,1763796668846,-2575.36,0.00016986,2]
[394633483,1763796668856,-500.0,0.00016986,2]
[394633484,1763796668865,-500.0,0.00016986,2]
[394633485,1763796668875,-503.58,0.00016986,2]
[394633486,1763796668885,-500.0,0.00016986,2]
[394633487,1763796668894,-500.0,0.00016986,2]
[394633488,1763796668903,-500.0,0.00016986,2]
[394633489,1763796668913,-182.93083325,0.00016986,2]
[394633490,1763796668923,-529.16563213,0.00016986,2]
[394633491,1763796668933,-500.0,0.00016986,2]
[394633492,1763796668942,-821.5,0.00016986,2]
[394633493,1763796668952,-500.0,0.00016986,2]
[394633494,1763796668961,-500.0,0.00016986,2]
[394633495,1763796668972,-500.0,0.00016986,2]
[394633496,1763796668981,-801.1,0.00016986,2]
[394633497,1763796668992,-500.0,0.00016986,2]
[394633498,1763796669001,-500.0,0.00016986,2]
[394633499,1763796669011,-500.0,0.00016986,2]
[394633500,1763796669021,-500.0,0.00016986,2]
[394633501,1763796669030,-500.0,0.00016986,2]
[394633502,1763796669040,-500.0,0.00016986,2]
[394633503,1763796669050,-500.0,0.00016986,2]
[394633504,1763796669059,-540.99,0.00016986,2]
[394633505,1763796669068,-751.12,0.00016986,2]
[394633506,1763796669077,-1175.42,0.00016986,2]
[394633507,1763796669086,-600.0,0.00016986,2]
[394633508,1763796669096,-600.0,0.00016986,2]
[394633509,1763796669105,-1711.30306844,0.0001699,2]
[394633510,1763796669114,-150.0,0.00017,2]
[394633511,1763796669124,-150.0,0.00017,2]
[394633512,1763796669133,-150.0,0.00017,2]
[394633513,1763796669143,-250.0,0.00017,2]
[394633514,1763796669152,-1390456.98169424,0.00017,2]
[394633515,1763796670117,-362.62048766,0.00015649,2]
[394633516,1763796670142,-137.37951234,0.00015649,2]
[394633517,1763796670152,-254.51098116,0.00015649,2]
[394633518,1763796670163,-245.48901884,0.00015649,2]
[394633519,1763796670173,-500.0,0.00016438,2]
[394633520,1763796670182,-660.65,0.00016438,2]
[394633521,1763796670192,-500.0,0.00016438,2]
[394633522,1763796670202,-500.0,0.00016444,2]
[394633523,1763796670212,-500.0,0.00016712,2]
[394633524,1763796670222,-660.65,0.00016712,2]
[394633525,1763796670232,-547.79,0.00016712,2]
[394633526,1763796670242,-500.0,0.00016985,2]
[394633527,1763796670252,-664.81,0.00016986,2]
[394633528,1763796670262,-359.40781366,0.00016986,2]
[394633529,1763796670274,-140.59218634,0.00016986,2]
[394633530,1763796670283,-660.65,0.00016986,2]
[394633531,1763796670293,-939.90706613,0.00017,2]
[394633532,1763796670304,-410.28585585,0.00017,2]
[394633533,1763796671815,-660.54996,0.00016338,2]
[394633534,1763796671827,-1058.19290902,0.00016338,2]
[394633535,1763796671870,-4503.90275408,0.00016338,2]
[394633536,1763796671882,-1189.5354,0.00016338,2]
[394633537,1763796671894,-971.89817904,0.00016338,2]
[394633538,1763796671905,-2031.77394321,0.00016338,2]
[394633539,1763796671915,-500.0,0.00016438,2]
[394633540,1763796671925,-27.55764437,0.00016438,2]
[394633541,1763796671965,-0.02308247,0.00016438,2]
[394633542,1763796736616,1096.0,0.00014875,2]
[394633543,1763796741490,1096.0,0.00014875,2]
[394633544,1763796765670,733.47,0.00019178,30]
[394633546,1763797004414,166.66,0.00014941,2]
[394633547,1763797022633,470.82570326,0.00015823,5]
[394633548,1763797132198,162.79,7.529e-05,2]
[394633549,1763797463573,150.0,0.0001495,2]
[394633552,1763797831558,-960.0,0.00015056,2]
[394633553,1763797831568,-300.0,0.00015056,2]
[394633554,1763797831579,-300.0,0.00015056,2]
[394633555,1763797831588,-300.0,0.00015056,2]
[394633556,1763797831598,-1200.0,0.00015056,2]
[394633557,1763797831608,-821.32,0.00015057,2]
[394633558,1763797831618,-9868.11654663,0.00015057,2]
[394633559,1763797831630,-52870.82022902,0.00015057,2]
[394633560,1763797831643,-619.28153566,0.00015057,2]
[394633579,1763797837716,-9253.98168869,0.00015057,2]
[394633580,1763797837726,-999.0,0.00015073,3]
[394633581,1763797837736,-395.844,0.00015238,2]
[394633582,1763797837745,-166.66,0.00015255,2]
[394633583,1763797837755,-150.0,0.00015288,2]
[394633584,1763797837765,-150.0,0.00015288,2]
[394633585,1763797837774,-150.0,0.00015288,2]
[394633586,1763797837783,-150.0,0.00015288,2]
[394633587,1763797837793,-150.0,0.00015288,2]
[394633588,1763797837803,-150.0,0.00015288,2]
[394633589,1763797837813,-150.0,0.00015288,2]
[394633590,1763797837822,-152.20025881,0.00015288,2]
[394633591,1763797837831,-155.76638023,0.00015288,2]
[394633592,1763797837845,-150.0,0.00015288,2]
[394633593,1763797837854,-150.0,0.00015288,2]
[394633595,1763797837863,-150.0,0.00015288,2]
[394633597,1763797837873,-791.83282442,0.00015455,2]
[394633599,1763797837883,-172.79781397,0.00015469,2]
[394633601,1763797837892,-1514.77301534,0.0001547,2]
[394633603,1763797837902,-2158.35838339,0.0001547,2]
[394633605,1763797837911,-2009.0,0.00015476,2]
[394633607,1763797837920,-500.0,0.00015548,2]
[394633609,1763797837929,-500.0,0.00015548,2]
[394633611,1763797837938,-500.0,0.00015548,2]
[394633613,1763797837947,-379.37,0.00015548,2]
[394633615,1763797837956,-500.0,0.00015548,2]
[394633616,1763797837965,-500.0,0.00015548,2]
[394633619,1763797837975,-500.0,0.00015548,2]
[394633620,1763797837985,-500.0,0.00015548,2]
[394633623,1763797837995,-348.44780557,0.00015548,2]
[394633625,1763797838004,-500.0,0.00015548,2]
[394633627,1763797838013,-265.41215588,0.00015548,2]
[394633629,1763797838022,-282.35989758,0.00015548,2]
[394633631,1763797838032,-500.0,0.00015548,2]
[394633633,1763797838041,-166.66,0.0001557,2]
[394633635,1763797838051,-500.0,0.00015573,2]
[394633637,1763797838060,-500.0,0.00015573,2]
[394633639,1763797838069,-500.0,0.00015573,2]
[394633641,1763797838079,-335.51242062,0.00015573,2]
[394633643,1763797838088,-1096.0,0.00015616,2]
[394633645,1763797838098,-1514.77301527,0.00015629,2]
[394633647,1763797838107,-485.41944203,0.00015649,2]
[394633649,1763797838116,-500.0,0.00015649,2]
[394633651,1763797838125,-500.0,0.00015649,2]
[394633653,1763797838134,-543.78523529,0.00015649,2]
[394633655,1763797838143,-500.0,0.00015649,2]
[394633656,1763797838152,-500.0,0.00015649,2]
[394633658,1763797838161,-500.0,0.00015649,2]
[394633660,1763797838171,-811.72,0.00015747,2]
[394633662,1763797838181,-1514.77301527,0.00015788,2]
[394633664,1763797838191,-150.0,0.00015854,2]
[394633666,1763797838200,-1210.76,0.00015878,2]
[394633669,1763797838211,-166.66,0.00015884,2]
[394633671,1763797838220,-2158.35838339,0.00015904,2]
[394633672,1763797838229,-1514.77301527,0.00015947,2]
[394633675,1763797838239,-489.38,0.00016082,2]
[394633677,1763797838248,-1514.77301527,0.00016106,2]
[394633678,1763797838257,-500.0,0.00016121,2]
[394633680,1763797838267,-503.26423455,0.00016121,2]
[394633683,1763797838276,-1000.0,0.00016121,2]
[394633684,1763797838285,-150.0,0.00016137,2]
[394633686,1763797838295,-150.0,0.00016137,2]
[394633689,1763797838304,-150.0,0.00016137,2]
[394633691,1763797838314,-150.0,0.00016137,2]
[394633693,1763797838323,-183.15,0.00016158,2]
[394633695,1763797838334,-510.0,0.00016185,2]
[394633697,1763797838344,-166.66,0.00016199,2]
[394633698,1763797838354,-1514.77301527,0.00016264,2]
[394633701,1763797838363,-168.11080135,0.00016338,2]
[394633703,1763797838372,-1026.13506678,0.00016338,2]
[394633705,1763797838382,-2158.35838339,0.00016338,2]
[394633707,1763797838391,-9374.26783086,0.00016338,2]
[394633708,1763797838401,-9374.26783077,0.000164,2]
[394633710,1763797838410,-551.73308375,0.00016414,2]
[394633712,1763797838419,-578.20924308,0.00016414,2]
[394633714,1763797838429,-150.0,0.0001642,2]
[394633716,1763797838439,-1514.77301527,0.00016423,2]
[394633719,1763797838448,-1393.08,0.00016428,2]
[394633721,1763797838458,-500.0,0.00016437,2]
[394633723,1763797838468,-500.0,0.00016437,2]
[394633724,1763797838478,-500.0,0.00016437,2]
[394633726,1763797838487,-500.0,0.00016437,2]
[394633728,1763797838497,-500.0,0.00016437,2]
[394633730,1763797838507,-500.0,0.00016437,2]
[394633733,1763797838516,-1096.0,0.00016438,2]
[394633735,1763797838526,-500.0,0.00016438,2]
[394633736,1763797838538,-500.0,0.00016438,2]
[394633738,1763797838547,-500.0,0.00016438,2]
[394633740,1763797838557,-500.0,0.00016438,2]
[394633742,1763797838566,-416.62920117,0.00016438,2]
[394633744,1763797838576,-500.0,0.00016438,2]
[394633746,1763797838585,-500.0,0.00016438,2]
[394633748,1763797838595,-500.0,0.00016438,2]
[394633750,1763797838603,-500.0,0.00016438,2]
[394633752,1763797838612,-500.0,0.00016438,2]
[394633754,1763797838621,-516.57099484,0.00016438,2]
[394633756,1763797838630,-500.0,0.00016438,2]
[394633758,1763797838639,-500.0,0.00016438,2]
[394633760,1763797838648,-500.0,0.00016438,2]
[394633762,1763797838658,-500.0,0.00016438,2]
[394633764,1763797838667,-858.85,0.00016438,2]
[394633766,1763797838676,-500.0,0.00016438,2]
[394633768,1763797838685,-500.0,0.00016438,2]
[394633770,1763797838695,-741.36,0.00016438,2]
[394633772,1763797838704,-812.43,0.00016438,2]
[394633774,1763797838714,-500.0,0.00016438,2]
[394633776,1763797838723,-500.0,0.00016438,2]
[394633777,1763797838732,-601.76,0.00016438,2]
[394633778,1763797838741,-500.0,0.00016438,2]
[394633779,1763797838751,-500.0,0.00016438,2]
[394633780,1763797838760,-500.0,0.00016438,2]
[394633781,1763797838769,-500.0,0.00016438,2]
[394633782,1763797838778,-500.0,0.00016438,2]
[394633783,1763797838788,-500.0,0.00016438,2]
[394633784,1763797838797,-500.0,0.00016438,2]
[394633785,1763797838806,-500.0,0.00016438,2]
[394633786,1763797838815,-566.44,0.00016438,2]
[394633787,1763797838825,-500.0,0.00016438,2]
[394633788,1763797838835,-500.0,0.00016438,2]
[394633789,1763797838848,-500.0,0.00016438,2]
[394633790,1763797838858,-800.48,0.00016438,2]
[394633791,1763797838868,-500.0,0.00016438,2]
[394633792,1763797838879,-503.79,0.00016438,2]
[394633793,1763797838888,-540.29,0.00016438,2]
[394633794,1763797838901,-500.0,0.00016438,2]
[394633795,1763797838912,-603.09,0.00016438,2]
[394633796,1763797838925,-500.0,0.00016438,2]
[394633797,1763797838935,-500.0,0.00016438,2]
[394633798,1763797838945,-500.0,0.00016438,2]
[394633799,1763797838955,-970.55,0.00016438,2]
[394633800,1763797838964,-486.32,0.00016438,2]
[394633801,1763797838974,-500.0,0.00016438,2]
[394633802,1763797838983,-812.47,0.00016438,2]
[394633803,1763797838992,-500.0,0.00016438,2]
[394633804,1763797839002,-500.0,0.00016438,2]
[394633805,1763797839011,-500.0,0.00016438,2]
[394633806,1763797839020,-500.0,0.00016438,2]
[394633807,1763797839030,-586.62,0.00016438,2]
[394633808,1763797839039,-500.0,0.00016438,2]
[394633809,1763797839049,-500.0,0.00016438,2]
[394633810,1763797839058,-500.0,0.00016438,2]
[394633811,1763797839067,-1060.15,0.00016438,2]
[394633812,1763797839076,-500.0,0.00016438,2]
[394633813,1763797839086,-500.0,0.00016438,2]
[394633814,1763797839096,-500.0,0.00016438,2]
[394633815,1763797839105,-500.0,0.00016438,2]
[394633816,1763797839118,-500.0,0.00016438,2]
[394633817,1763797839128,-500.0,0.00016438,2]
[394633818,1763797839137,-500.0,0.00016438,2]
[394633819,1763797839147,-895.02,0.00016438,2]
[394633820,1763797839156,-500.0,0.00016438,2]
[394633821,1763797839166,-1067.81,0.00016438,2]
[394633822,1763797839175,-500.0,0.00016438,2]
[394633823,1763797839185,-500.0,0.00016438,2]
[394633824,1763797839194,-500.0,0.00016438,2]
[394633825,1763797839204,-500.0,0.00016438,2]
[394633826,1763797839213,-500.0,0.00016438,2]
[394633827,1763797839222,-500.0,0.00016438,2]
[394633828,1763797839232,-500.0,0.00016438,2]
[394633829,1763797839241,-500.0,0.00016438,2]
[394633830,1763797839250,-500.0,0.00016438,2]
[394633831,1763797839259,-666.39,0.00016438,2]
[394633832,1763797839269,-500.0,0.00016438,2]
[394633833,1763797839278,-500.0,0.00016438,2]
[394633834,1763797839287,-500.0,0.00016438,2]
[394633835,1763797839296,-615.3,0.00016438,2]
[394633836,1763797839306,-500.0,0.00016438,2]
[394633837,1763797839315,-500.0,0.00016438,2]
[394633838,1763797839325,-500.0,0.00016438,2]
[394633839,1763797839334,-500.0,0.00016438,2]
[394633840,1763797839579,-551.04,0.00016438,2]
[394633841,1763797839589,-782.82,0.00016438,2]
[394633842,1763797839599,-500.0,0.00016438,2]
[394633843,1763797839608,-807.51,0.00016438,2]
[394633844,1763797839617,-500.0,0.00016438,2]
[394633845,1763797839626,-419.65149247,0.00016438,2]
[394633846,1763797839636,-855.55,0.00016438,2]
[394633847,1763797839645,-952.91,0.00016438,2]
[394633848,1763797839655,-801.12,0.00016438,2]
[394633849,1763797839664,-543.74,0.00016438,2]
[394633850,1763797839673,-916.03,0.00016438,2]
[394633851,1763797839682,-549.75,0.00016438,2]
[394633852,1763797839691,-500.0,0.00016438,2]
[394633853,1763797839701,-500.0,0.00016438,2]
[394633854,1763797839710,-500.0,0.00016438,2]
[394633855,1763797839719,-1139.3,0.00016438,2]
[394633856,1763797839728,-1842.4,0.00016438,2]
[394633857,1763797839738,-500.0,0.00016438,2]
[394633858,1763797839747,-1002.93,0.00016438,2]
[394633859,1763797839756,-547.17,0.00016438,2]
[394633860,1763797839771,-571.14,0.00016438,2]
[394633861,1763797839780,-1401.02,0.00016438,2]
[394633862,1763797839789,-500.0,0.00016438,2]